fUSD/lending_fUSD_20250620
["ID","MTS","AMOUNT","RATE_DAILY","PERIOD"]
[366711502,1750415635101,-2657.88,0.00029293,4]
[366711503,1750415635111,-678.91,0.00029293,4]
[366711504,1750415635121,-951.97,0.00029293,4]
[366711505,1750415635131,-934.95,0.00029293,4]
[366711506,1750415635142,-982.82,0.00029293,4]
[366711507,1750415635152,-1196.7,0.00029293,4]
[366711508,1750415635161,-905.13,0.00029293,4]
[366711509,1750415635171,-733.67,0.00029293,4]
[366711510,1750415635182,-623.14,0.00029293,4]
[366711511,1750415635192,-858.58,0.00029293,4]
[366711512,1750415635202,-4996.22,0.00029293,4]
[366711513,1750415635213,-1411.02,0.00029293,4]
[366711514,1750415635227,-490.0,0.00029293,4]
[366711515,1750415635237,-566.53,0.00029293,4]
[366711516,1750415635247,-673.04,0.00029293,4]
[366711517,1750415635257,-1000.0,0.00029293,4]
[366711518,1750415635267,-560.81,0.00029293,4]
[366711519,1750415635277,-5470.75,0.00029293,4]
[366711520,1750415635286,-490.0,0.00029293,4]
[366711521,1750415635296,-608.76,0.00029293,4]
[366711522,1750415635306,-2781.24,0.00029293,4]
[366711523,1750415635316,-622.46,0.00029293,4]
[366711524,1750415635326,-2671.47,0.00029293,4]
[366711525,1750415635336,-807.14,0.00029293,4]
[366711526,1750415635348,-490.0,0.00029303,4]
[366711527,1750415635358,-264.68654753,0.00029303,4]
[366711528,1750415635367,-490.0,0.00029303,4]
[366711529,1750415635378,-490.0,0.00029303,4]
[366711530,1750415635388,-525.64,0.00029303,4]
[366711531,1750415635398,-524.89046056,0.00029303,4]
[366711532,1750415635408,-490.0,0.00029303,4]
[366711533,1750415635418,-824.86,0.00029303,4]
[366711534,1750415635428,-490.0,0.00029303,4]
[366711535,1750415635440,-1042.35,0.00029303,4]
[366711536,1750415635450,-159.469271,0.00029303,4]
[366711537,1750415635459,-2063.423116,0.00029303,4]
[366711538,1750415635469,-1129.83,0.00029303,4]
[366711539,1750415635479,-490.0,0.00029303,4]
[366711540,1750415635489,-490.0,0.00029303,4]
[366711541,1750415635499,-2980.629608,0.00029303,4]
[366711542,1750415635509,-1443.11,0.00029303,4]
[366711543,1750415635519,-6813.75,0.00029303,4]
[366711544,1750415635528,-490.0,0.00029303,4]
[366711545,1750415635538,-977.73,0.00029303,4]
[366711546,1750415635548,-1060.66,0.00029303,4]
[366711547,1750415635557,-1271.04,0.00029303,4]
[366711548,1750415635567,-490.0,0.00029303,4]
[366711549,1750415635577,-1687.17,0.00029303,4]
[366711550,1750415635587,-203.51047599,0.00029303,4]
[366711551,1750415635596,-1425.44,0.00029303,4]
[366711552,1750415635606,-1260.23,0.00029303,4]
[366711553,1750415635616,-535.62,0.00029303,4]
[366711554,1750415635626,-600.47,0.00029303,4]
[366711555,1750415635635,-490.0,0.00029303,4]
[366711556,1750415635644,-7447.5,0.00029303,4]
[366711557,1750415635654,-490.0,0.00029303,4]
[366711558,1750415635663,-490.0,0.00029303,4]
[366711559,1750415635673,-998.98,0.00029303,4]
[366711560,1750415635682,-490.0,0.00029303,4]
[366711561,1750415635691,-1377.1,0.00029303,4]
[366711562,1750415635700,-4861.36,0.00029303,4]
[366711563,1750415635710,-1977.29,0.00029303,4]
[366711564,1750415635720,-1276.4,0.00029303,4]
[366711565,1750415635730,-2235.26,0.00029303,4]
[366711566,1750415635740,-2488.9,0.00029303,4]
[366711567,1750415635750,-1190.82,0.00029303,4]
[366711568,1750415635760,-712.91,0.00029303,4]
[366711569,1750415635769,-1879.2,0.00029303,4]
[366711570,1750415635779,-490.0,0.00029303,4]
[366711571,1750415635789,-3348.43,0.00029303,4]
[366711572,1750415635799,-2145.92,0.00029303,4]
[366711573,1750415635808,-3119.56,0.00029303,4]
[366711574,1750415635818,-3273.4,0.00029303,4]
[366711575,1750415635828,-490.0,0.00029305,4]
[366711576,1750415635839,-490.0,0.00029305,4]
[366711577,1750415635849,-490.0,0.00029305,4]
[366711578,1750415635858,-1480.37,0.00029305,4]
[366711579,1750415635867,-1643.1,0.00029305,4]
[366711580,1750415635876,-565.51,0.00029305,4]
[366711581,1750415635885,-492.45,0.00029305,4]
[366711582,1750415635894,-2032.33,0.00029305,4]
[366711583,1750415635904,-880.4,0.00029305,4]
[366711584,1750415635914,-490.0,0.00029305,4]
[366711585,1750415635924,-1088.85,0.00029305,4]
[366711586,1750415635933,-848.08,0.00029305,4]
[366711587,1750415635943,-912.78,0.00029305,4]
[366711588,1750415635952,-1634.09,0.00029305,4]
[366711589,1750415635961,-1838.84,0.00029305,4]
[366711590,1750415635970,-895.29,0.00029305,4]
[366711591,1750415635980,-669.38,0.00029305,4]
[366711592,1750415635990,-818.8,0.00029305,4]
[366711593,1750415636000,-490.0,0.00029305,4]
[366711594,1750415636009,-1627.01,0.00029305,4]
[366711595,1750415636020,-490.0,0.00029305,4]
[366711596,1750415636030,-490.0,0.00029305,4]
[366711597,1750415636040,-490.0,0.00029305,4]
[366711598,1750415636050,-1078.58,0.00029305,4]
[366711599,1750415636059,-994.67,0.00029305,4]
[366711600,1750415636069,-771.65,0.00029305,4]
[366711601,1750415636079,-490.0,0.00029305,4]
[366711602,1750415636088,-694.41,0.00029305,4]
[366711603,1750415636098,-490.0,0.00029305,4]
[366711604,1750415636108,-679.99,0.00029305,4]
[366711605,1750415636118,-2362.55,0.00029305,4]
[366711606,1750415636127,-490.0,0.00029305,4]
[366711607,1750415636137,-490.0,0.00029305,4]
[366711608,1750415636147,-592.8,0.00029305,4]
[366711609,1750415636157,-490.0,0.00029305,4]
[366711610,1750415636168,-542.79,0.00029305,4]
[366711611,1750415636178,-1385.22,0.00029305,4]
[366711612,1750415636188,-1591.3,0.00029305,4]
[366711613,1750415636198,-490.0,0.00029305,4]
[366711614,1750415636208,-1073.69,0.00029305,4]
[366711615,1750415636218,-616.36,0.00029305,4]
[366711616,1750415636228,-490.0,0.00029305,4]
[366711617,1750415636238,-490.0,0.00029305,4]
[366711618,1750415636248,-490.0,0.00029305,4]
[366711619,1750415636258,-583.29,0.00029305,4]
[366711620,1750415636268,-1175.68,0.00029305,4]
[366711621,1750415636278,-1312.24,0.00029305,4]
[366711622,1750415636288,-1363.77,0.00029305,4]
[366711623,1750415636298,-770.8,0.00029305,4]
[366711624,1750415636308,-997.01,0.00029305,4]
[366711625,1750415636318,-989.39,0.00029305,4]
[366711626,1750415636327,-567.86,0.00029305,4]
[366711627,1750415636337,-1096.04,0.00029305,4]
[366711628,1750415636347,-1520.45,0.00029305,4]
[366711629,1750415636357,-805.39,0.00029305,4]
[366711630,1750415636366,-490.0,0.00029305,4]
[366711631,1750415636376,-1428.58,0.00029305,4]
[366711632,1750415636386,-596.59,0.00029305,4]
[366711633,1750415636395,-5382.53,0.00029305,4]
[366711634,1750415636404,-490.0,0.00029305,4]
[366711635,1750415636415,-703.96,0.00029305,4]
[366711636,1750415636424,-1669.54,0.00029305,4]
[366711637,1750415636434,-1601.56,0.00029305,4]
[366711638,1750415636444,-2721.61,0.00029305,4]
[366711639,1750415636453,-490.0,0.00029305,4]
[366711640,1750415636463,-741.54,0.00029305,4]
[366711641,1750415636472,-669.76,0.00029305,4]
[366711642,1750415636481,-1225.01,0.00029305,4]
[366711643,1750415636491,-2422.36,0.00029305,4]
[366711644,1750415636500,-1005.68,0.00029305,4]
[366711645,1750415636509,-490.0,0.00029305,4]
[366711646,1750415636519,-2138.59,0.00029305,4]
[366711647,1750415636529,-998.16,0.00029305,4]
[366711648,1750415636538,-4396.87,0.00029305,4]
[366711649,1750415636547,-933.76,0.00029305,4]
[366711650,1750415636556,-897.22,0.00029305,4]
[366711651,1750415636567,-1489.74,0.00029305,4]
[366711652,1750415636577,-2632.99,0.00029305,4]
[366711653,1750415636587,-490.0,0.00029305,4]
[366711654,1750415636597,-2115.45,0.00029305,4]
[366711655,1750415636606,-969.59,0.00029305,4]
[366711656,1750415636616,-1788.12,0.00029305,4]
[366711657,1750415636626,-587.84,0.00029305,4]
[366711658,1750415636635,-747.47,0.00029305,4]
[366711659,1750415636645,-629.05,0.00029305,4]
[366711660,1750415636655,-1158.39,0.00029305,4]
[366711661,1750415636665,-4900.18,0.00029305,4]
[366711662,1750415636676,-490.0,0.00029305,4]
[366711663,1750415636686,-1552.28,0.00029305,4]
[366711664,1750415636696,-540.28,0.00029305,4]
[366711665,1750415636706,-1986.49,0.00029305,4]
[366711666,1750415636717,-2142.56,0.00029305,4]
[366711667,1750415636727,-675.46,0.00029305,4]
[366711668,1750415636739,-2131.24,0.00029305,4]
[366711669,1750415636749,-1335.47,0.00029305,4]
[366711670,1750415636759,-894.67,0.00029305,4]
[366711671,1750415636769,-3901.98,0.00029305,4]
[366711672,1750415636779,-694.78,0.00029305,4]
[366711673,1750415636789,-748.02,0.00029305,4]
[366711674,1750415636800,-2210.45,0.00029305,4]
[366711675,1750415636810,-1823.65,0.00029305,4]
[366711676,1750415636820,-1839.21,0.00029305,4]
[366711677,1750415636831,-951.3,0.00029305,4]
[366711678,1750415636841,-828.87,0.00029305,4]
[366711679,1750415636852,-490.0,0.00029305,4]
[366711680,1750415636863,-828.66,0.00029305,4]
[366711681,1750415636874,-2336.71,0.00029305,4]
[366711682,1750415636883,-1193.56,0.00029305,4]
[366711683,1750415636894,-1201.91,0.00029305,4]
[366711684,1750415636903,-1533.32,0.00029305,4]
[366711685,1750415636914,-2402.13,0.00029305,4]
[366711686,1750415636924,-2054.14,0.00029305,4]
[366711687,1750415636934,-490.0,0.00029315,4]
[366711688,1750415636943,-490.0,0.00029315,4]
[366711689,1750415636954,-490.0,0.00029315,4]
[366711690,1750415636965,-153.23517125,0.00029315,4]
[366711691,1750415636975,-490.0,0.00029315,4]
[366711692,1750415636986,-490.0,0.00029315,4]
[366711693,1750415636996,-490.0,0.00029315,4]
[366711694,1750415637005,-536.23,0.00029315,4]
[366711695,1750415637016,-490.0,0.00029315,4]
[366711696,1750415637026,-686.65,0.00029315,4]
[366711697,1750415637036,-279.87253566,0.00029315,4]
[366711698,1750415637046,-897.84,0.00029315,4]
[366711699,1750415637056,-793.14,0.00029315,4]
[366711700,1750415637067,-656.19,0.00029315,4]
[366711701,1750415637078,-624.06,0.00029315,4]
[366711702,1750415637089,-490.0,0.00029315,4]
[366711703,1750415637099,-568.83,0.00029315,4]
[366711704,1750415637109,-402.69,0.00029315,4]
[366711705,1750415637119,-697.89,0.00029315,4]
[366711706,1750415637130,-490.0,0.00029315,4]
[366711707,1750415637140,-724.36,0.00029315,4]
[366711708,1750415637151,-490.0,0.00029315,4]
[366711709,1750415637161,-490.0,0.00029315,4]
[366711710,1750415637171,-1029.22,0.00029315,4]
[366711711,1750415637181,-490.0,0.00029315,4]
[366711712,1750415637191,-490.0,0.00029315,4]
[366711713,1750415637201,-490.0,0.00029315,4]
[366711714,1750415637212,-490.0,0.00029315,4]
[366711715,1750415637225,-490.0,0.00029315,4]
[366711716,1750415637235,-490.0,0.00029315,4]
[366711717,1750415637245,-817.57,0.00029315,4]
[366711718,1750415637254,-490.0,0.00029315,4]
[366711719,1750415637265,-490.0,0.00029315,4]
[366711720,1750415637275,-490.0,0.00029315,4]
[366711721,1750415637286,-860.55,0.00029315,4]
[366711722,1750415637296,-490.0,0.00029315,4]
[366711723,1750415637307,-490.0,0.00029315,4]
[366711724,1750415637318,-490.0,0.00029315,4]
[366711725,1750415637331,-490.0,0.00029315,4]
[366711726,1750415637342,-490.0,0.00029315,4]
[366711727,1750415637352,-490.0,0.00029315,4]
[366711728,1750415637363,-490.0,0.00029315,4]
[366711729,1750415637373,-490.0,0.00029315,4]
[366711730,1750415637384,-490.0,0.00029315,4]
[366711731,1750415637394,-650.85,0.00029315,4]
[366711732,1750415637404,-490.0,0.00029315,4]
[366711733,1750415637413,-502.09625862,0.00029315,4]
[366711734,1750415637423,-666.55,0.00029315,4]
[366711735,1750415637433,-490.0,0.00029315,4]
[366711736,1750415637444,-246.241428,0.00029315,4]
[366711737,1750415637455,-490.0,0.00029315,4]
[366711738,1750415637465,-490.0,0.00029315,4]
[366711739,1750415637475,-497.02,0.00029315,4]
[366711740,1750415637485,-322.71554087,0.00029315,4]
[366711741,1750415637497,-490.0,0.00029315,4]
[366711742,1750415637523,-561.45,0.00029315,4]
[366711743,1750415637535,-490.0,0.00029315,4]
[366711744,1750415637547,-326.90220037,0.00029315,4]
[366711745,1750415637558,-673.68,0.00029315,4]
[366711746,1750415637570,-490.0,0.00029315,4]
[366711747,1750415637581,-210.74802119,0.00029315,4]
[366711748,1750415637592,-798.5,0.00029315,4]
[366711749,1750415637603,-490.0,0.00029315,4]
[366711750,1750415637614,-490.0,0.00029315,4]
[366711751,1750415637625,-490.0,0.00029315,4]
[366711752,1750415637637,-307.47510572,0.00029315,4]
[366711753,1750415637648,-814.97,0.00029315,4]
[366711754,1750415637659,-2237.34,0.00029315,4]
[366711755,1750415637671,-490.0,0.00029315,4]
[366711756,1750415637683,-490.0,0.00029315,4]
[366711757,1750415637695,-997.34,0.00029315,4]
[366711758,1750415637707,-792.52,0.00029315,4]
[366711759,1750415637719,-490.0,0.00029315,4]
[366711760,1750415637731,-490.0,0.00029315,4]
[366711761,1750415637742,-490.0,0.00029315,4]
[366711762,1750415637754,-749.65,0.00029315,4]
[366711763,1750415637765,-490.0,0.00029315,4]
[366711764,1750415637776,-490.0,0.00029315,4]
[366711765,1750415637787,-870.19,0.00029315,4]
[366711766,1750415637798,-661.75,0.00029315,4]
[366711767,1750415637810,-508.02,0.00029315,4]
[366711768,1750415637821,-490.0,0.00029315,4]
[366711769,1750415637833,-490.0,0.00029315,4]
[366711770,1750415637845,-1294.95,0.00029315,4]
[366711771,1750415637858,-240.21370294,0.00029315,4]
[366711772,1750415637870,-490.0,0.00029315,4]
[366711773,1750415637882,-490.0,0.00029315,4]
[366711774,1750415637894,-860.83,0.00029315,4]
[366711775,1750415637908,-1554.68,0.00029315,4]
[366711776,1750415637920,-490.0,0.00029315,4]
[366711777,1750415637940,-490.0,0.00029315,4]
[366711778,1750415637953,-686.43,0.00029315,4]
[366711779,1750415637965,-490.0,0.00029315,4]
[366711780,1750415637977,-490.0,0.00029315,4]
[366711781,1750415637989,-620.11,0.00029315,4]
[366711782,1750415638002,-490.0,0.00029315,4]
[366711783,1750415638013,-591.54,0.00029315,4]
[366711784,1750415638025,-1692.44,0.00029315,4]
[366711785,1750415638038,-757.27,0.00029315,4]
[366711786,1750415638051,-490.0,0.00029315,4]
[366711787,1750415638063,-291.10636954,0.00029315,4]
[366711788,1750415638076,-1478.21,0.00029315,4]
[366711789,1750415638089,-490.0,0.00029315,4]
[366711790,1750415638101,-490.0,0.00029315,4]
[366711791,1750415638115,-1664.77,0.00029315,4]
[366711792,1750415638127,-513.53,0.00029315,4]
[366711793,1750415638140,-1643.07,0.00029315,4]
[366711794,1750415638151,-2421.62,0.00029315,4]
[366711795,1750415638163,-490.0,0.00029315,4]
[366711796,1750415638175,-1171.85,0.00029315,4]
[366711797,1750415638188,-1002.75,0.00029315,4]
[366711798,1750415638200,-490.0,0.00029315,4]
[366711799,1750415638212,-490.0,0.00029315,4]
[366711800,1750415638224,-490.0,0.00029315,4]
[366711801,1750415638237,-490.0,0.00029315,4]
[366711802,1750415638248,-513.94,0.00029315,4]
[366711803,1750415638261,-490.0,0.00029315,4]
[366711804,1750415638272,-1052.23,0.00029315,4]
[366711805,1750415638284,-1203.58,0.00029315,4]
[366711806,1750415638295,-1052.12,0.00029315,4]
[366711807,1750415638307,-490.0,0.00029315,4]
[366711808,1750415638319,-1116.54,0.00029315,4]
[366711809,1750415638331,-490.0,0.00029315,4]
[366711810,1750415638343,-593.05,0.00029315,4]
[366711811,1750415638355,-388.6325344,0.00029315,4]
[366711812,1750415638374,-713.86,0.00029315,4]
[366711813,1750415638387,-576.72,0.00029315,4]
[366711814,1750415638400,-1207.78,0.00029315,4]
[366711815,1750415638411,-490.0,0.00029315,4]
[366711816,1750415638423,-885.97,0.00029315,4]
[366711817,1750415638435,-1286.94,0.00029315,4]
[366711818,1750415638447,-774.59,0.00029315,4]
[366711819,1750415638459,-663.64,0.00029315,4]
[366711820,1750415638471,-689.38,0.00029315,4]
[366711821,1750415638484,-556.07,0.00029315,4]
[366711822,1750415638495,-490.0,0.00029315,4]
[366711823,1750415638509,-929.62,0.00029315,4]
[366711824,1750415638521,-852.86,0.00029315,4]
[366711825,1750415638533,-540.11,0.00029315,4]
[366711826,1750415638546,-490.0,0.00029315,4]
[366711827,1750415638559,-549.5,0.00029315,4]
[366711828,1750415638572,-490.0,0.00029315,4]
[366711829,1750415638585,-719.33,0.00029315,4]
[366711830,1750415638600,-490.0,0.00029315,4]
[366711831,1750415638612,-1178.9,0.00029315,4]
[366711832,1750415638624,-992.43,0.00029315,4]
[366711833,1750415638637,-490.0,0.00029315,4]
[366711834,1750415638650,-2120.13,0.00029315,4]
[366711835,1750415638663,-490.0,0.00029315,4]
[366711836,1750415638676,-797.21,0.00029315,4]
[366711837,1750415638688,-2831.45,0.00029315,4]
[366711838,1750415638700,-297.61557894,0.00029315,4]
[366711839,1750415638712,-1657.46,0.00029315,4]
[366711840,1750415638724,-1176.63,0.00029315,4]
[366711841,1750415638736,-835.13,0.00029315,4]
[366711842,1750415638749,-640.77,0.00029315,4]
[366711843,1750415638761,-955.18,0.00029315,4]
[366711844,1750415638772,-759.69,0.00029315,4]
[366711845,1750415638790,-495.19,0.00029315,4]
[366711846,1750415638802,-1620.75,0.00029315,4]
[366711847,1750415638814,-2608.35,0.00029315,4]
[366711848,1750415638826,-1487.07,0.00029315,4]
[366711849,1750415638839,-490.0,0.00029315,4]
[366711850,1750415638851,-620.7,0.00029315,4]
[366711851,1750415638863,-2196.02,0.00029315,4]
[366711852,1750415638876,-2048.55,0.00029315,4]
[366711853,1750415638889,-493.99442545,0.00029315,4]
[366711854,1750415638901,-1452.89,0.00029315,4]
[366711855,1750415638913,-676.1,0.00029315,4]
[366711856,1750415638925,-490.0,0.00029315,4]
[366711857,1750415638937,-3078.01,0.00029315,4]
[366711858,1750415638950,-729.0,0.00029315,4]
[366711859,1750415638962,-646.89,0.00029315,4]
[366711860,1750415638973,-490.0,0.00029315,4]
[366711861,1750415638985,-692.86,0.00029315,4]
[366711862,1750415638996,-1111.1,0.00029315,4]
[366711863,1750415639008,-726.03,0.00029315,4]
[366711864,1750415639020,-896.01,0.00029315,4]
[366711865,1750415639031,-522.54,0.00029315,4]
[366711866,1750415639043,-817.65,0.00029315,4]
[366711867,1750415639055,-1212.05,0.00029315,4]
[366711868,1750415639066,-490.0,0.00029315,4]
[366711869,1750415639078,-1510.44,0.00029315,4]
[366711870,1750415639091,-563.12,0.00029315,4]
[366711871,1750415639650,-17404.6,0.00029315,4]
[366711872,1750415639679,-312.30111272,0.00029315,4]
[366711873,1750415639690,-516.42,0.00029315,4]
[366711874,1750415639701,-1966.77,0.00029315,4]
[366711875,1750415639711,-499.64,0.00029315,4]
[366711876,1750415639722,-682.61,0.00029315,4]
[366711877,1750415639733,-496.54,0.00029315,4]
[366711878,1750415639751,-1292.76,0.00029315,4]
[366711879,1750415639763,-532.96,0.00029315,4]
[366711880,1750415639773,-490.0,0.00029315,4]
[366711881,1750415639784,-3089.65,0.00029315,4]
[366711882,1750415639795,-490.0,0.00029315,4]
[366711883,1750415639805,-1110.49,0.00029315,4]
[366711884,1750415639816,-875.85,0.00029315,4]
[366711885,1750415639827,-490.0,0.00029315,4]
[366711886,1750415639838,-808.72,0.00029315,4]
[366711887,1750415639849,-548.1,0.00029315,4]
[366711888,1750415639860,-1116.64,0.00029315,4]
[366711889,1750415639871,-741.55,0.00029315,4]
[366711890,1750415639881,-490.0,0.00029315,4]
[366711891,1750415639892,-490.0,0.00029315,4]
[366711892,1750415639904,-490.0,0.00029315,4]
[366711893,1750415639916,-900.32,0.00029315,4]
[366711894,1750415639927,-3388.66,0.00029315,4]
[366711895,1750415639938,-1386.85,0.00029315,4]
[366711896,1750415639950,-2512.9,0.00029315,4]
[366711897,1750415639961,-490.0,0.00029315,4]
[366711898,1750415639972,-613.06,0.00029315,4]
[366711899,1750415639984,-7527.62,0.00029315,4]
[366711900,1750415639995,-7882.79,0.00029315,4]
[366711901,1750415640006,-741.74,0.00029315,4]
[366711902,1750415640017,-557.61,0.00029315,4]
[366711903,1750415640027,-2444.05,0.00029315,4]
[366711904,1750415640039,-1074.56,0.00029315,4]
[366711905,1750415640050,-716.85,0.00029315,4]
[366711906,1750415640062,-3776.02,0.00029315,4]
[366711907,1750415640072,-600.0,0.00029315,120]
[366711908,1750415640084,-759.29,0.00029315,4]
[366711909,1750415640095,-1533.1,0.00029315,4]
[366711910,1750415640106,-508.46,0.00029315,4]
[366711911,1750415640117,-490.0,0.00029315,4]
[366711912,1750415640128,-5317.42,0.00029315,4]
[366711913,1750415640140,-1702.18,0.00029315,4]
[366711914,1750415640152,-1502.12,0.00029315,4]
[366711915,1750415640163,-490.0,0.00029315,4]
[366711916,1750415640182,-9880.35,0.00029315,4]
[366711917,1750415640193,-670.44,0.00029315,4]
[366711918,1750415640205,-2012.16,0.00029315,4]
[366711919,1750415640218,-1936.5,0.00029315,4]
[366711920,1750415640230,-6404.69,0.00029315,4]
[366711921,1750415640242,-490.0,0.00029315,4]
[366711922,1750415640253,-2380.6,0.00029315,4]
[366711923,1750415640264,-1141.27,0.00029315,4]
[366711924,1750415640276,-510.99,0.00029315,4]
[366711925,1750415640287,-691.59,0.00029315,4]
[366711926,1750415640299,-490.0,0.00029315,4]
[366711927,1750415640310,-490.0,0.00029315,4]
[366711928,1750415640322,-2450.17,0.00029315,4]
[366711929,1750415640334,-1844.2,0.00029315,4]
[366711930,1750415640345,-622.58,0.00029315,4]
[366711931,1750415640358,-1419.42,0.00029315,4]
[366711932,1750415640369,-17540.73,0.00029315,4]
[366711933,1750415640380,-1227.01,0.00029315,4]
[366711934,1750415640391,-490.0,0.00029315,4]
[366711935,1750415640403,-490.0,0.00029315,4]
[366711936,1750415640413,-492.39554385,0.00029315,4]
[366711937,1750415640425,-490.0,0.00029315,4]
[366711938,1750415640436,-490.0,0.00029315,4]
[366711939,1750415640447,-5948.54,0.00029315,4]
[366711940,1750415640458,-957.68,0.00029315,4]
[366711941,1750415640470,-5372.22,0.00029315,4]
[366711942,1750415640481,-1499.27,0.00029315,4]
[366711943,1750415640492,-1594.4,0.00029315,4]
[366711944,1750415640503,-490.0,0.00029315,4]
[366711945,1750415640515,-1525.88,0.00029315,4]
[366711946,1750415640526,-18649.49,0.00029315,4]
[366711947,1750415640537,-490.0,0.00029315,4]
[366711948,1750415640548,-662.4,0.00029315,4]
[366711949,1750415640560,-11431.71,0.00029315,4]
[366711950,1750415640572,-574.02,0.00029315,4]
[366711951,1750415640583,-490.0,0.00029315,4]
[366711952,1750415640595,-2766.75,0.00029315,4]
[366711953,1750415640611,-490.0,0.00029315,4]
[366711954,1750415640623,-1747.3,0.00029315,4]
[366711955,1750415640634,-490.0,0.00029315,4]
[366711956,1750415640646,-521.31,0.00029315,4]
[366711957,1750415640657,-1639.8,0.00029315,4]
[366711958,1750415640669,-641.47,0.00029315,4]
[366711959,1750415640680,-1452.7,0.00029315,4]
[366711960,1750415640691,-500.8767381,0.00029315,4]
[366711961,1750415640702,-766.28,0.00029315,4]
[366711962,1750415640713,-490.0,0.00029315,4]
[366711963,1750415640725,-1528.81,0.00029315,4]
[366711964,1750415640736,-2442.89,0.00029315,4]
[366711965,1750415640747,-490.0,0.00029315,4]
[366711966,1750415640759,-974.85,0.00029315,4]
[366711967,1750415640771,-525.8,0.00029315,4]
[366711968,1750415640783,-655.26,0.00029315,4]
[366711969,1750415640795,-490.0,0.00029315,4]
[366711970,1750415640806,-6155.02,0.00029315,4]
[366711971,1750415640818,-1546.64,0.00029315,4]
[366711972,1750415640828,-952.09,0.00029315,4]
[366711973,1750415640840,-2556.54,0.00029315,4]
[366711974,1750415640851,-490.0,0.00029315,4]
[366711975,1750415640863,-490.0,0.00029315,4]
[366711976,1750415640874,-1078.67,0.00029315,4]
[366711977,1750415640885,-1698.38,0.00029315,4]
[366711978,1750415640896,-7770.54,0.00029315,4]
[366711979,1750415640908,-490.0,0.00029315,4]
[366711980,1750415640919,-490.0,0.00029315,4]
[366711981,1750415640930,-713.18,0.00029315,4]
[366711982,1750415640941,-490.0,0.00029315,4]
[366711983,1750415640953,-1078.51,0.00029315,4]
[366711984,1750415640964,-565.57,0.00029315,4]
[366711985,1750415640975,-543.66140514,0.00029315,4]
[366711986,1750415640986,-490.0,0.00029315,4]
[366711987,1750415640998,-490.0,0.00029315,4]
[366711988,1750415641009,-185.03836405,0.00029325,4]
[366711989,1750415641019,-490.0,0.00029325,4]
[366711990,1750415641030,-490.0,0.00029325,4]
[366711991,1750415641041,-709.67,0.00029325,4]
[366711992,1750415641052,-490.0,0.00029325,4]
[366711993,1750415641062,-307.07516337,0.00029325,4]
[366711994,1750415641073,-716.73,0.00029325,4]
[366711995,1750415641084,-490.0,0.00029325,4]
[366711996,1750415641095,-879.88,0.00029325,4]
[366711997,1750415641106,-490.0,0.00029325,4]
[366711998,1750415641117,-490.0,0.00029325,4]
[366711999,1750415641127,-490.0,0.00029325,4]
[366712000,1750415641138,-490.0,0.00029325,4]
[366712001,1750415641149,-490.0,0.00029325,4]